bitfinex-derivatives/quotes_BNBF0:USTF0_20250609
["timestamp","ask_amount","ask_price","bid_price","bid_amount"]
[1749440777399,0.2675863,650.46,649.97,3.83604247]
[1749440778304,0.2675863,650.46,649.76,3.83604247]
[1749440778700,0.2675863,650.46,649.73,3.83604247]
[1749440779099,0.2675863,650.46,649.71,3.83604247]
[1749440780910,0.2675863,650.46,649.72,3.83604247]
[1749440781905,0.26756367,650.58,649.67,3.83604247]
[1749440782109,0.26756367,650.58,649.68,0.30784386]
[1749440782307,0.26756367,650.58,649.68,4.14388633]
[1749440782602,0.26756367,650.58,649.69,0.30783912]
[1749440782800,0.26756367,650.58,649.77,3.83604247]
[1749440783202,0.26756367,650.58,649.78,3.83604247]
[1749440784103,0.26756367,650.58,649.8,3.83604247]
[1749440784502,0.26756367,650.58,649.81,3.83604247]
[1749440785002,0.26756367,650.58,649.8,3.83604247]
[1749440785204,0.26756367,650.58,649.8,4.14382948]
[1749440785504,0.26756367,650.58,649.82,3.83604247]
[1749440785808,0.26756367,650.58,649.81,3.83604247]
[1749440786306,0.26756367,650.58,649.82,0.30777753]
[1749440791714,0.26756367,650.58,649.89,3.83604247]
[1749440792116,0.26756367,650.58,649.9,3.83604247]
[1749440792512,0.26756367,650.58,649.91,3.83604247]
[1749440793113,0.26756367,650.58,649.88,3.83604247]
[1749440794317,0.26756367,650.58,649.9,3.83604247]
[1749440796115,0.26756367,650.58,649.89,3.83604247]
[1749440797016,0.26756367,650.58,649.92,3.83604247]
[1749440798613,0.26756367,650.58,650.01,3.83604247]
[1749440800116,0.26756367,650.58,650.03,3.83604247]
[1749440801123,0.26756367,650.58,650.08,3.83604247]
[1749440801923,0.26756367,650.58,650.06,3.83604247]
[1749440802923,0.26756367,650.58,650.13,3.83604247]
[1749440809433,0.26756367,650.58,650.14,3.83604247]
[1749440811134,0.26756367,650.58,650.06,3.83604247]
[1749440812331,0.26756367,650.58,650.0,3.83604247]
[1749440813936,0.26756367,650.58,650.01,3.83604247]
[1749440814232,0.26756367,650.58,650.02,3.83604247]
[1749440815938,0.26756367,650.58,650.0,3.83604247]
[1749440816337,0.26756367,650.58,650.01,3.83604247]
[1749440816838,0.26756367,650.58,649.82,0.30777753]
[1749440816839,0.26756367,650.58,650.0,3.83604247]
[1749440817334,0.26756367,650.58,649.92,3.83604247]
[1749440818235,0.26756367,650.58,649.82,0.30777753]
[1749440818236,0.26756367,650.58,649.93,3.83604247]
[1749440819636,0.26756367,650.58,649.94,3.83604247]
[1749440820034,0.26756367,650.58,649.93,3.83604247]
[1749440821038,0.26756367,650.58,649.94,3.83604247]
[1749440821440,0.26756367,650.58,649.95,3.83604247]
[1749440822239,0.26756367,650.58,649.98,3.83604247]
[1749440822837,0.26756367,650.58,649.97,3.83604247]
[1749440824635,0.26756367,650.58,649.98,3.83604247]
[1749440825437,0.26756367,650.58,649.95,3.83604247]
[1749440825938,0.26756367,650.58,649.97,3.83604247]
[1749440827141,0.26756367,650.58,650.05,3.83604247]
[1749440827838,0.26756367,650.58,649.99,3.83604247]
[1749440828345,0.26756367,650.58,649.82,0.30777753]
[1749440850762,0.26756367,650.58,649.85,3.83604247]
[1749440852163,0.26756367,650.58,649.89,3.83604247]
[1749440853370,0.26756367,650.58,649.9,3.83604247]
[1749440856672,0.26756367,650.58,649.82,0.30777753]
[1749440856673,0.26756367,650.58,650.04,3.83604247]
[1749440859873,0.26756367,650.58,650.16,3.83604247]
[1749440860776,0.26756367,650.58,650.08,3.83604247]
[1749440861273,0.26756367,650.58,650.02,3.83604247]
[1749440861776,0.26756367,650.58,649.82,0.30777753]
[1749440861777,0.26756367,650.58,649.99,3.83604247]
[1749440861977,0.26756367,650.58,649.92,3.83604247]
[1749440862474,0.26756367,650.58,649.87,3.83604247]
[1749440866577,0.26756367,650.58,649.82,0.30777753]
[1749440871089,0.26756367,650.58,649.82,4.14382]
[1749440871589,0.26756367,650.58,649.86,3.83604247]
[1749440871986,0.26756367,650.58,649.91,3.83604247]
[1749440872889,0.26756367,650.58,649.9,3.83604247]
[1749440873290,0.26756367,650.58,649.84,3.83604247]
[1749440873790,0.26756367,650.58,649.85,3.83604247]
[1749440876587,0.26756367,650.58,649.92,3.83604247]
[1749440877087,0.26756367,650.58,649.93,3.83604247]
[1749440878292,0.26756367,650.58,649.96,3.83604247]
[1749440879289,0.26756367,650.58,649.97,3.83604247]
[1749440881395,0.26756367,650.58,649.98,3.83604247]
[1749440883200,0.26756367,650.58,650.14,3.83604247]
[1749440883597,0.26756367,650.58,650.17,3.83604247]
[1749440884301,0.26756367,650.58,650.1,3.83604247]
[1749440884500,0.26756367,650.58,650.11,3.83604247]
[1749440889505,0.26756367,650.58,650.12,3.83604247]
[1749440891406,0.26756367,650.58,650.04,3.83604247]
[1749440892406,0.26756367,650.58,650.03,3.83604247]
[1749440893606,0.26756367,650.58,650.05,3.83604247]
[1749440894310,0.26756367,650.58,650.07,3.83604247]
[1749440894610,0.26756367,650.58,650.0,3.83604247]
[1749440897410,0.26756367,650.58,650.01,3.83604247]
[1749440897911,0.26756367,650.58,650.0,3.83604247]
[1749440898609,0.26756367,650.58,649.82,0.30777753]
[1749440898610,0.26756367,650.58,649.93,3.83604247]
[1749440899615,0.26756367,650.58,649.94,3.83604247]
[1749440900415,0.26756367,650.58,649.93,3.83604247]
[1749440900813,0.26756367,650.58,649.99,3.83604247]
[1749440901711,0.26756367,650.58,650.0,3.83604247]
[1749440904414,0.26756367,650.58,650.03,3.83604247]
[1749440907613,0.26756367,650.58,650.02,3.83604247]
[1749440908315,0.06080493,650.58,650.02,3.83604247]
[1749440908521,2.41887873,651.25,649.82,0.30777753]
[1749440908526,1.13145284,651.17,650.23,3.83604247]
[1749440908716,0.30713945,651.17,650.23,3.83604247]
[1749440909818,0.30713945,651.17,650.22,3.83604247]
[1749440910018,1.43859229,651.17,650.22,3.83604247]
[1749440910318,0.30713945,651.17,650.22,3.83604247]
[1749440910720,1.13145284,651.16,650.22,3.83604247]
[1749440911017,1.13145284,651.15,650.15,3.83604247]
[1749440911218,1.13145284,651.14,650.15,3.83604247]
[1749440911418,1.13145284,651.13,650.15,3.83604247]
[1749440911621,0.26744749,650.9,650.15,3.83604247]
[1749440912118,0.26744749,650.9,649.94,5.37045945]
[1749440912320,0.26744749,650.9,649.95,0.30771597]
[1749440927727,0.26744749,650.9,649.95,4.14375844]
[1749440928132,0.26744749,650.9,649.96,3.83604247]
[1749440928353,0.26744749,650.9,649.97,0.3077065]
[1749440930829,0.26744749,650.9,649.99,3.83604247]
[1749440931034,0.26744749,650.9,650.0,0.3076923]
[1749440931532,0.26744749,650.9,650.04,3.83604247]
[1749440931736,0.26744749,650.9,650.08,3.83604247]
[1749440932734,0.26744749,650.9,650.09,3.83604247]
[1749440933532,0.26744749,650.9,650.11,3.83604247]
[1749440935433,0.26744749,650.9,650.12,3.83604247]
[1749440936237,0.26744749,650.9,650.18,3.83604247]
[1749440936732,0.26744749,650.9,650.17,3.83604247]
[1749440937332,0.26744749,650.9,650.21,3.83604247]
[1749440937536,0.26744749,650.9,650.0,0.3076923]
[1749440937537,0.26744749,650.9,650.1,3.83604247]
[1749440938539,0.26744749,650.9,650.0,0.3076923]
[1749440948342,0.26744749,650.9,650.07,3.83604247]
[1749440949343,0.26744749,650.9,650.12,3.83604247]
[1749440949748,0.26744749,650.9,650.05,3.83604247]
[1749440950143,0.26744749,650.9,650.09,3.83604247]
[1749440951045,0.26744749,650.9,650.05,3.83604247]
[1749440954047,0.26744749,650.9,650.08,3.83604247]
[1749440954649,0.26744749,650.9,650.11,3.83604247]
[1749440955544,0.26744749,650.9,650.12,3.83604247]
[1749440956449,0.26744749,650.9,650.09,3.83604247]
[1749440956850,0.26744749,650.9,650.1,3.83604247]
[1749440957751,0.26744749,650.9,650.07,3.83604247]
[1749440959553,0.26744749,650.9,650.16,3.83604247]
[1749440960448,0.26744749,650.9,650.0,0.3076923]
[1749440960449,0.26744749,650.9,650.17,3.83604247]
[1749440960850,0.26744749,650.9,650.16,3.83604247]
[1749440962660,0.26744749,650.9,650.17,3.83604247]
[1749440963749,0.26744749,650.9,650.18,3.83604247]
[1749440964053,0.26744749,650.9,650.04,3.83604247]
[1749440964851,0.26744749,650.9,650.05,3.83604247]
[1749440966756,0.26744749,650.9,650.06,3.83604247]
[1749440967157,0.26744749,650.9,650.04,3.83604247]
[1749440967557,0.26744749,650.9,650.0,0.3076923]
[1749440967558,0.26744749,650.9,650.07,3.83604247]
[1749440968554,0.26744749,650.9,650.08,3.83604247]
[1749440969455,0.26744749,650.9,650.1,3.83604247]
[1749440969958,0.26744749,650.9,650.09,3.83604247]
[1749440970353,0.26744749,650.9,650.08,3.83604247]
[1749440971557,0.26744749,650.9,650.09,3.83604247]
[1749440973460,0.26744749,650.9,650.08,3.83604247]
[1749440973958,0.26744749,650.9,650.17,3.83604247]
[1749440974858,0.26744749,650.9,650.15,3.83604247]
[1749440976060,0.26744749,650.9,650.16,3.83604247]
[1749440976456,0.26744749,650.9,650.15,3.83604247]
[1749440977058,0.26744749,650.9,650.17,3.83604247]
[1749440979263,0.26744749,650.9,650.18,3.83604247]
[1749440979664,0.26744749,650.9,650.13,3.83604247]
[1749440979860,0.26744749,650.9,650.14,0.30762604]
[1749440990973,0.26744749,650.9,650.21,3.83604247]
[1749440992668,0.26744749,650.9,650.14,0.30762604]
[1749440993974,0.26744749,650.9,650.18,3.83604247]
[1749440994775,0.26744749,650.9,650.17,3.83604247]
[1749440995272,0.26744749,650.9,650.14,4.14366851]
[1749440995976,0.26744749,650.9,650.14,0.30762604]
[1749440996177,0.26744749,650.9,650.14,4.14366851]
[1749440996773,0.26744749,650.9,650.15,3.83604247]
[1749440997178,0.26744749,650.9,650.14,0.30762604]
[1749441001583,0.30713945,651.17,650.14,0.30762604]
[1749441001778,0.26739406,650.97,650.14,0.30762604]
[1749441007085,0.26739406,650.97,650.24,3.83604247]
[1749441010786,0.26739406,650.97,650.14,0.30762604]
[1749441010787,0.26739406,650.97,650.25,3.83604247]
[1749441011184,0.26739406,650.97,650.24,3.83604247]
[1749441011588,0.26739406,650.97,650.25,3.83604247]
[1749441011988,0.26739406,650.97,650.24,3.83604247]
[1749441012888,0.26739406,650.97,650.36,3.83604247]
[1749441014787,0.26739406,650.97,650.14,5.67808549]
[1749441014788,0.26739406,650.97,650.4,3.83604247]
[1749441015691,0.26739406,650.97,650.37,3.83604247]
[1749441016092,0.26739406,650.97,650.4,3.83604247]
[1749441017091,0.26739406,650.97,650.39,3.83604247]
[1749441017397,0.26739406,650.97,650.18,9.20650192]
[1749441017592,0.26739406,650.97,650.18,9.51410904]
[1749441017791,0.26739406,650.97,650.18,4.14364959]
[1749441020597,0.26739406,650.97,650.18,0.30760712]
[1749441022893,0.26739406,650.97,650.18,4.14364959]
[1749441023698,0.26739406,650.97,650.19,3.83604247]
[1749441025096,0.26739406,650.97,650.2,3.83604247]
[1749441025500,0.26739406,650.97,650.21,3.83604247]
[1749441026201,0.26739406,650.97,650.18,0.30760712]
[1749441027300,0.26739406,650.97,650.23,3.83604247]
[1749441028600,0.26739406,650.97,650.22,3.83604247]
[1749441030498,0.26739406,650.97,650.21,3.83604247]
[1749441030900,0.26739406,650.97,650.27,3.83604247]
[1749441031899,0.26739406,650.97,650.28,3.83604247]
[1749441033700,0.26739406,650.97,650.27,3.83604247]
[1749441033998,0.26739406,650.97,650.28,3.83604247]
[1749441035004,0.26739406,650.97,650.29,3.83604247]
[1749441035301,0.26739406,650.97,650.18,0.30760712]
[1749441045611,0.26739406,650.97,650.36,3.83604247]
[1749441046508,0.26739406,650.97,650.39,3.83604247]
[1749441046909,0.26739406,650.97,650.38,3.83604247]
[1749441048514,0.26739406,650.97,650.43,3.83604247]
[1749441051414,0.26739406,650.97,650.41,3.83604247]
[1749441052012,0.26739406,650.97,650.49,3.83604247]
[1749441052416,0.26739406,650.97,650.29,3.83604247]
[1749441053713,0.26739406,650.97,650.28,3.83604247]
[1749441056818,0.26739406,650.97,650.29,3.83604247]
[1749441060425,0.26739406,650.97,650.31,3.83604247]
[1749441060924,0.26739406,650.97,650.29,3.83604247]
[1749441061322,0.26739406,650.97,650.3,3.83604247]
[1749441062319,0.26739406,650.97,650.48,3.83604247]
[1749441062725,0.26739406,650.97,650.44,3.83604247]
[1749441063622,0.26739406,650.97,650.48,3.83604247]
[1749441066227,0.26739406,650.97,650.46,3.83604247]
[1749441066727,0.26739406,650.97,650.44,3.83604247]
[1749441069336,0.26739406,650.97,650.35,3.83604247]
[1749441070437,0.26739406,650.97,650.34,3.83604247]
[1749441074436,0.26739406,650.97,650.33,3.83604247]
[1749441076137,0.26739406,650.97,650.18,0.30760712]
[1749441076138,0.26739406,650.97,650.35,3.83604247]
[1749441079438,0.26739406,650.97,650.42,3.83604247]
[1749441080238,0.26739406,650.97,650.19,5.37045945]
[1749441080239,0.26739406,650.97,650.44,3.83604247]
[1749441081042,0.26739406,650.97,650.49,3.83604247]
[1749441082342,0.26739406,650.97,650.31,3.83604247]
[1749441083341,0.26739406,650.97,650.3,3.83604247]
[1749441085744,0.26739406,650.97,650.29,3.83604247]
[1749441087945,0.26739406,650.97,650.3,3.83604247]
[1749441088139,0.26739406,650.97,650.31,3.83604247]
[1749441090041,0.26739406,650.97,650.29,3.83604247]
[1749441091046,0.26739406,650.97,650.25,3.83604247]
[1749441091445,0.26739406,650.97,650.24,3.83604247]
[1749441092349,0.26739406,650.97,650.36,3.83604247]
[1749441093148,0.26739406,650.97,650.37,3.83604247]
[1749441094452,0.26739406,650.97,650.38,3.83604247]
[1749441095048,0.26739406,650.97,650.4,3.83604247]
[1749441095451,0.26739406,650.97,650.42,3.83604247]
[1749441096251,0.26739406,650.97,650.43,3.83604247]
[1749441098053,0.26739406,650.97,650.44,3.83604247]
[1749441098458,0.26739406,650.97,650.47,3.83604247]
[1749441099859,0.26739406,650.97,650.43,3.83604247]
[1749441100254,0.26739406,650.97,650.45,3.83604247]
[1749441100856,0.26739406,650.97,650.44,3.83604247]
[1749441101358,0.26739406,650.97,650.45,3.83604247]
[1749441105664,0.26739406,650.97,650.42,3.83604247]
[1749441106161,0.26739406,650.97,650.43,3.83604247]
[1749441108762,0.26739406,650.97,650.2,5.37045945]
[1749441108763,0.26739406,650.97,650.42,3.83604247]
[1749441109265,0.26739406,650.97,650.36,3.83604247]
[1749441109763,0.26739406,650.97,650.38,3.83604247]
[1749441110167,0.26739406,650.97,650.41,3.83604247]
[1749441110566,0.26739406,650.97,650.34,3.83604247]
[1749441111068,0.26739406,650.97,650.33,3.83604247]
[1749441112469,0.26739406,650.97,650.26,3.83604247]
[1749441112863,0.26739406,650.97,650.22,3.83604247]
[1749441115067,0.26739406,650.97,650.23,3.83604247]
[1749441116372,0.26739406,650.97,650.22,3.83604247]
[1749441117872,0.26739406,650.97,650.21,3.83604247]
[1749441119068,0.26739406,650.97,650.23,3.83604247]
[1749441120074,0.26739406,650.97,650.24,3.83604247]
[1749441120474,0.26739406,650.97,650.28,3.83604247]
[1749441120974,0.26739406,650.97,650.36,3.83604247]
[1749441121574,0.26739406,650.97,650.37,3.83604247]
[1749441122477,0.26739406,650.97,650.18,0.30760712]
[1749441122478,0.26739406,650.97,650.52,3.83604247]
[1749441124576,0.26739406,650.97,650.54,3.83604247]
[1749441125178,0.26739406,650.97,650.53,3.83604247]
[1749441126377,0.26739406,650.97,650.54,3.83604247]
[1749441126873,0.26739406,650.97,650.42,3.83604247]
[1749441127273,0.26739406,650.97,650.31,3.83604247]
[1749441127776,0.26739406,650.97,650.33,3.83604247]
[1749441129473,0.26739406,650.97,650.32,3.83604247]
[1749441130877,0.26739406,650.97,650.24,3.83604247]
[1749441131278,0.26739406,650.97,650.23,3.83604247]
[1749441131775,0.26739406,650.97,650.24,3.83604247]
[1749441133677,0.26739406,650.97,650.23,3.83604247]
[1749441134080,0.26739406,650.97,650.24,3.83604247]
[1749441134976,0.26739406,650.97,650.18,0.30760712]
[1749441140880,0.26739406,650.97,650.2,3.83604247]
[1749441144978,0.26739406,650.97,650.44,3.83604247]
[1749441145882,0.26739406,650.97,650.49,3.83604247]
[1749441146682,0.26739406,650.97,650.5,3.83604247]
[1749441147282,0.26739406,650.97,650.49,3.83604247]
[1749441147583,0.26739406,650.97,650.5,3.83604247]
[1749441149888,0.26739406,650.97,650.25,3.83604247]
[1749441151290,0.26739406,650.97,650.23,3.83604247]
[1749441151790,0.26739406,650.97,650.24,3.83604247]
[1749441152692,0.26739406,650.97,650.18,0.30760712]
[1749441159497,1.1293832,651.41,650.18,0.30760712]
[1749441159801,0.26734989,651.09,650.18,0.30760712]
[1749441171110,0.26734989,651.09,650.31,3.83604247]
[1749441171613,0.26734989,651.09,650.32,3.83604247]
[1749441172014,0.26734989,651.09,650.45,3.83604247]
[1749441172409,0.26734989,651.09,650.35,3.83604247]
[1749441173310,0.26734989,651.09,650.36,3.83604247]
[1749441176013,0.26734989,651.09,650.35,3.83604247]
[1749441176411,0.26734989,651.09,650.26,3.83604247]
[1749441176615,0.26734989,651.09,650.26,4.14361174]
[1749441176815,0.26734989,651.09,650.28,3.83604247]
[1749441177417,0.26734989,651.09,650.27,3.83604247]
[1749441178213,0.26734989,651.09,650.29,3.83604247]
[1749441179117,0.26734989,651.09,650.26,0.30756927]
[1749441186422,0.26734989,651.09,650.27,3.83604247]
[1749441187319,0.26734989,651.09,650.26,0.30756927]
[1749441189025,0.26734989,651.09,650.26,4.14361174]
[1749441189921,0.26734989,651.09,650.28,3.83604247]
[1749441190824,0.26734989,651.09,650.3,3.83604247]
[1749441191325,0.26734989,651.09,650.31,3.83604247]
[1749441192626,0.26734989,651.09,650.26,0.30756927]
[1749441192627,0.26734989,651.09,650.32,3.83604247]
[1749441193928,0.26734989,651.09,650.34,3.83604247]
[1749441194527,0.26734989,651.09,650.35,3.83604247]
[1749441194928,0.26734989,651.09,650.34,3.83604247]
[1749441195433,0.26734989,651.09,650.32,3.83604247]
[1749441197233,0.26734989,651.09,650.46,3.83604247]
[1749441197733,0.26734989,651.09,650.47,3.83604247]
[1749441198636,0.26734989,651.09,650.45,3.83604247]
[1749441200338,0.26734989,651.09,650.44,3.83604247]
[1749441201342,0.26734989,651.09,650.43,3.83604247]
[1749441204846,0.26734989,651.09,650.46,3.83604247]
[1749441205342,0.26734989,651.09,650.5,3.83604247]
[1749441209048,0.26734989,651.09,650.46,3.83604247]
[1749441209844,0.26734989,651.09,650.26,0.30756927]
[1749441209845,0.26734989,651.09,650.47,3.83604247]
[1749441210246,0.26734989,651.09,650.48,3.83604247]
[1749441211149,0.26734989,651.09,650.51,3.83604247]
[1749441212449,0.26734989,651.09,650.49,3.83604247]
[1749441214852,0.26734989,651.09,650.5,3.83604247]
[1749441216454,0.26734989,651.09,650.52,3.83604247]
[1749441217054,0.26734989,651.09,650.53,3.83604247]
[1749441218353,0.26734989,651.09,650.54,3.83604247]
[1749441218754,0.26734989,651.09,650.57,3.83604247]
[1749441219750,0.26734989,651.09,650.58,3.83604247]
[1749441221054,0.26734989,651.09,650.26,0.30756927]
[1749441221055,0.26734989,651.09,650.53,3.83604247]
[1749441223153,0.26734989,651.09,650.32,5.37045945]
[1749441223358,1.12638564,651.37,650.33,0.30753617]
[1749441223557,2.38439299,651.6,650.33,0.30753617]
[1749441223758,0.26730472,651.19,650.33,0.30753617]
[1749441223958,1.1256302,651.58,650.33,0.30753617]
[1749441224159,0.26729548,651.19,650.33,0.30753617]
[1749441224458,1.1256302,651.56,650.33,0.30753617]
[1749441224658,1.1256302,651.55,650.33,0.30753617]
[1749441224957,0.26729137,651.21,650.33,0.30753617]
[1749441233559,0.26729137,651.21,650.44,3.83604247]
[1749441233958,0.26729137,651.21,650.45,3.83604247]
[1749441234363,0.26729137,651.21,650.36,3.83604247]
[1749441234563,0.26729137,651.21,650.37,0.30751725]
[1749441234758,0.26729137,651.21,650.42,3.83604247]
[1749441236665,0.26729137,651.21,650.41,3.83604247]
[1749441237069,0.26729137,651.21,650.44,3.83604247]
[1749441239370,0.26729137,651.21,650.37,0.30751725]
[1749441241569,2.79885151,651.86,650.37,0.30751725]
[1749441241772,0.26727392,651.29,650.37,0.30751725]
[1749441241975,1.1256302,651.84,650.37,0.30751725]
[1749441242176,1.43245866,651.83,650.37,0.30751725]
[1749441242378,0.26725545,651.32,650.37,0.30751725]
[1749441242675,1.1256302,651.81,650.37,0.30751725]
[1749441242974,0.26725647,651.32,650.37,0.30751725]
[1749441243174,1.1256302,651.79,650.37,0.30751725]
[1749441243374,0.2672575,651.46,650.37,0.30751725]
[1749441245573,0.2672575,651.46,650.52,3.83604247]
[1749441246477,0.2672575,651.46,650.49,3.83604247]
[1749441246777,0.2672575,651.46,650.49,4.14350299]
[1749441246977,0.2672575,651.46,650.65,3.83604247]
[1749441247774,0.306852,651.78,650.62,3.83604247]
[1749441247980,0.26720928,651.29,650.62,3.83604247]
[1749441248180,0.306852,651.78,650.62,3.83604247]
[1749441249077,0.306852,651.78,650.49,0.30746052]
[1749441249481,0.26720107,651.5,650.49,0.30746052]
[1749441258686,0.26720107,651.5,650.54,3.83604247]
[1749441259291,0.26720107,651.5,650.53,3.83604247]
[1749441259686,0.26720107,651.5,650.49,0.30746052]
[1749441271295,0.26720107,651.5,650.51,3.83604247]
[1749441277512,0.26720107,651.5,650.49,4.14350299]
[1749441278806,0.26720107,651.5,650.49,0.30746052]
[1749441296716,0.26720107,651.5,650.52,3.83604247]
[1749441298722,0.26720107,651.5,650.49,0.30746052]
[1749441332853,0.26720107,651.5,650.51,3.79843335]
[1749441333250,0.26720107,651.5,650.5,3.79843335]
[1749441334649,0.26720107,651.5,650.51,3.79843335]
[1749441335457,0.26720107,651.5,650.52,3.79843335]
[1749441335956,0.26720107,651.5,650.49,0.30746052]
[1749441345865,0.26720107,651.5,650.5,3.79843335]
[1749441346761,0.26720107,651.5,650.51,3.79843335]
[1749441347668,0.26720107,651.5,650.49,0.30746052]
[1749441349468,0.26720107,651.5,650.51,3.79843335]
[1749441351265,0.26720107,651.5,650.55,3.79843335]
[1749441352570,0.26720107,651.5,650.56,3.79843335]
[1749441353472,0.26720107,651.5,650.55,3.79843335]
[1749441354372,0.26720107,651.5,650.56,3.79843335]
[1749441355371,0.26720107,651.5,650.58,3.79843335]
[1749441357673,0.26720107,651.5,650.63,3.79843335]
[1749441358074,0.26720107,651.5,650.62,3.79843335]
[1749441358473,0.26720107,651.5,650.71,3.79843335]
[1749441361673,1.08330004,651.66,650.66,3.79843335]
[1749441361872,1.08330004,651.65,650.66,3.79843335]
[1749441362077,1.08330004,651.64,650.66,3.79843335]
[1749441362277,1.08330004,651.63,650.66,3.79843335]
[1749441362574,1.08330004,651.62,650.66,3.79843335]
[1749441362778,1.08330004,651.61,650.66,3.79843335]
[1749441362979,1.08330004,651.6,650.66,3.79843335]
[1749441363180,1.08330004,651.59,650.66,3.79843335]
[1749441363475,1.08330004,651.58,650.66,3.79843335]
[1749441363777,1.08330004,651.57,650.66,3.79843335]
[1749441364081,1.08330004,651.56,650.66,3.79843335]
[1749441364280,1.08330004,651.66,650.66,3.79843335]
[1749441364577,1.08330004,651.65,650.66,3.79843335]
[1749441364880,1.08330004,651.64,650.66,3.79843335]
[1749441365076,1.08330004,651.63,650.66,3.79843335]
[1749441365276,1.08330004,651.63,650.49,0.30746052]
[1749441365277,1.08330004,651.62,650.62,3.79843335]
[1749441365475,1.08330004,651.61,650.62,3.79843335]
[1749441365678,1.08330004,651.6,650.62,3.79843335]
[1749441365879,1.08330004,651.59,650.62,3.79843335]
[1749441366080,1.08330004,651.58,650.62,3.79843335]
[1749441366281,1.08330004,651.57,650.62,3.79843335]
[1749441366581,1.08330004,651.56,650.62,3.79843335]
[1749441366780,1.08330004,651.55,650.62,3.79843335]
[1749441366981,1.26432495,651.67,650.59,3.79843335]
[1749441367177,1.08330004,651.66,650.59,3.79843335]
[1749441367376,1.08330004,651.65,650.59,3.79843335]
[1749441367680,1.08330004,651.64,650.59,3.79843335]
[1749441367881,1.08330004,651.63,650.6,3.79843335]
[1749441368180,1.08330004,651.62,650.6,3.79843335]
[1749441368381,1.08330004,651.61,650.57,3.79843335]
[1749441368677,1.08330004,651.6,650.57,3.79843335]
[1749441368878,1.08330004,651.59,650.57,3.79843335]
[1749441369078,1.08330004,651.58,650.57,3.79843335]
[1749441369281,1.08330004,651.57,650.57,3.79843335]
[1749441369481,1.08330004,651.56,650.57,3.79843335]
[1749441369680,1.08330004,651.55,650.57,3.79843335]
[1749441369877,1.08330004,651.54,650.57,3.79843335]
[1749441370080,2.23268502,651.69,650.58,3.79843335]
[1749441370280,1.39019913,651.68,650.58,3.79843335]
[1749441370480,1.08330004,651.67,650.58,3.79843335]
[1749441370679,1.08330004,651.66,650.58,3.79843335]
[1749441370882,1.08330004,651.65,650.58,3.79843335]
[1749441371081,1.08330004,651.64,650.56,3.79843335]
[1749441371284,1.08330004,651.63,650.56,3.79843335]
[1749441371485,1.08330004,651.62,650.55,3.79843335]
[1749441371681,1.08330004,651.61,650.55,3.79843335]
[1749441371982,1.08330004,651.6,650.55,3.79843335]
[1749441372186,1.08330004,651.59,650.55,3.79843335]
[1749441372380,1.08330004,651.58,650.55,3.79843335]
[1749441372585,1.08330004,651.57,650.55,3.79843335]
[1749441372882,1.26393077,651.63,650.55,3.79843335]
[1749441372883,1.08330004,651.56,650.55,3.79843335]
[1749441373087,1.08330004,651.55,650.55,3.79843335]
[1749441373288,1.08330004,651.54,650.56,3.79843335]
[1749441373582,1.08330004,651.53,650.56,3.79843335]
[1749441373784,1.08330004,651.52,650.56,3.79843335]
[1749441374087,1.08330004,651.51,650.56,3.79843335]
[1749441374286,1.08330004,651.5,650.56,3.79843335]
[1749441374488,1.08330004,651.49,650.56,3.79843335]
[1749441374688,1.08330004,651.48,650.56,3.79843335]
[1749441374888,1.08330004,651.47,650.56,3.79843335]
[1749441375088,2.34727888,651.64,650.63,3.79843335]
[1749441375389,2.34728027,651.63,650.63,3.79843335]
[1749441375683,1.08330004,651.62,650.63,3.79843335]
[1749441375888,1.08330004,651.61,650.63,3.79843335]
[1749441376184,1.08330004,651.6,650.63,3.79843335]
[1749441376384,1.08330004,651.59,650.63,3.79843335]
[1749441376584,1.08330004,651.58,650.63,3.79843335]
[1749441376783,1.08330004,651.57,650.63,3.79843335]
[1749441376983,0.26725442,651.35,650.66,3.79843335]
[1749441378188,0.26725442,651.35,650.67,3.79843335]
[1749441378581,0.26725442,651.35,650.59,3.79843335]
[1749441380987,0.26725442,651.35,650.61,3.79843335]
[1749441381883,0.26725442,651.35,650.57,3.79843335]
[1749441383884,0.26725442,651.35,650.49,0.30746052]
[1749441384084,0.26725442,651.35,650.56,3.805689]
[1749441386089,0.26725442,651.35,650.55,3.805689]
[1749441387988,0.26725442,651.35,650.56,3.805689]
[1749441388488,0.26725442,651.35,650.62,3.805689]
[1749441389286,0.26725442,651.35,650.61,3.805689]
[1749441389692,0.26725442,651.35,650.49,0.30746052]
[1749441399393,0.26725442,651.35,650.54,3.805689]
[1749441400594,0.26725442,651.35,650.63,3.805689]
[1749441401498,0.26725442,651.35,650.72,3.805689]
[1749441404103,0.26725442,651.35,650.81,3.805689]
[1749441405499,0.26725442,651.35,650.73,3.805689]
[1749441406905,0.26725442,651.35,650.72,3.805689]
[1749441407307,0.26725442,651.35,650.73,3.805689]
[1749441409004,0.26725442,651.35,650.5,5.31780669]
[1749441409507,0.26725442,651.35,650.49,0.30746052]
[1749441419011,0.26725442,651.35,650.51,3.805689]
[1749441419813,0.26725442,651.35,650.49,4.11314952]
[1749441421314,0.26725442,651.35,650.49,0.30746052]
[1749441427528,0.26725442,651.35,650.49,4.11314952]
[1749441428726,0.26725442,651.35,650.51,3.805689]
[1749441429626,0.26725442,651.35,650.54,3.805689]